fUSD/lending_fUSD_20240428
["ID","MTS","AMOUNT","RATE_DAILY","PERIOD"]
[324794445,1714335085759,-334.1818958,0.00012054,2]
[324794446,1714335085770,-479.4680542,0.00012054,2]
[324794447,1714335085782,-90.4019458,0.00012054,2]
[324794448,1714335085792,-535.18,0.00012054,2]
[324794449,1714335085802,-544.01,0.00012054,2]
[324794450,1714335085811,-604.05,0.00012054,2]
[324794451,1714335085821,-500.0,0.00012054,2]
[324794452,1714335085831,-500.0,0.00012054,2]
[324794453,1714335085840,-659.69,0.00012054,2]
[324794454,1714335085850,-500.0,0.00012054,2]
[324794455,1714335085860,-500.0,0.00012054,2]
[324794456,1714335085871,-537.27,0.00012054,2]
[324794457,1714335085880,-500.0,0.00012054,2]
[324794458,1714335085890,-500.0,0.00012054,2]
[324794459,1714335085901,-522.34,0.00012054,2]
[324794460,1714335085911,-500.0,0.00012054,2]
[324794461,1714335085921,-543.61,0.00012054,2]
[324794462,1714335085931,-507.29,0.00012054,2]
[324794463,1714335085941,-500.0,0.00012054,2]
[324794464,1714335085951,-1120.45,0.00012054,2]
[324794465,1714335085960,-500.0,0.00012054,2]
[324794466,1714335085971,-756.08,0.00012054,2]
[324794467,1714335085980,-500.0,0.00012054,2]
[324794468,1714335085990,-1025.95,0.00012054,2]
[324794469,1714335085999,-500.0,0.00012054,2]
[324794470,1714335086009,-500.0,0.00012054,2]
[324794471,1714335086018,-500.0,0.00012054,2]
[324794472,1714335086027,-500.0,0.00012054,2]
[324794473,1714335086037,-500.0,0.00012054,2]
[324794474,1714335086046,-569.95,0.00012054,2]
[324794475,1714335086056,-606.72,0.00012054,2]
[324794476,1714335086065,-500.0,0.00012054,2]
[324794477,1714335086076,-500.0,0.00012054,2]
[324794478,1714335086086,-504.6982611,0.00012054,2]
[324794479,1714335086095,-500.0,0.00012054,2]
[324794480,1714335086327,-500.0,0.00012054,2]
[324794481,1714335086337,-500.0,0.00012054,2]
[324794482,1714335086346,-500.0,0.00012054,2]
[324794483,1714335086355,-500.0,0.00012054,2]
[324794484,1714335086364,-500.0,0.00012054,2]
[324794485,1714335086373,-500.0,0.00012054,2]
[324794486,1714335086385,-500.0,0.00012054,2]
[324794487,1714335086396,-500.0,0.00012054,2]
[324794488,1714335086406,-500.0,0.00012054,2]
[324794489,1714335086415,-508.08,0.00012054,2]
[324794490,1714335086424,-500.0,0.00012054,2]
[324794491,1714335086434,-500.0,0.00012054,2]
[324794492,1714335086444,-552.12,0.00012054,2]
[324794493,1714335086453,-500.0,0.00012054,2]
[324794494,1714335086463,-615.27,0.00012054,2]
[324794495,1714335086474,-598.40738141,0.00012054,2]
[324794496,1714335086483,-500.0,0.00012054,2]
[324794497,1714335086492,-275.86087747,0.00012054,2]
[324794498,1714335086502,-500.0,0.00012054,2]
[324794499,1714335086511,-500.0,0.00012054,2]
[324794500,1714335086520,-500.0,0.00012054,2]
[324794501,1714335086529,-545.78,0.00012054,2]
[324794502,1714335086541,-500.0,0.00012054,2]
[324794503,1714335086551,-591.93,0.00012054,2]
[324794504,1714335086562,-500.0,0.00012054,2]
[324794505,1714335086572,-500.0,0.00012054,2]
[324794506,1714335086584,-651.59,0.00012054,2]
[324794507,1714335086595,-500.0,0.00012054,2]
[324794508,1714335086606,-643.83,0.00012054,2]
[324794509,1714335086616,-537.09,0.00012054,2]
[324794510,1714335086627,-2705.047166,0.00012054,2]
[324794511,1714335086637,-571.874419,0.00012054,2]
[324794512,1714335086647,-2705.047166,0.00012054,2]
[324794513,1714335086656,-1022.25,0.00012054,2]
[324794514,1714335086665,-571.874419,0.00012054,2]
[324794515,1714335086674,-926.43,0.00012054,2]
[324794516,1714335086684,-500.0,0.00012054,2]
[324794517,1714335086696,-500.0,0.00012054,2]
[324794518,1714335086707,-884.7,0.00012054,2]
[324794519,1714335086718,-500.0,0.00012054,2]
[324794520,1714335086727,-500.0,0.00012054,2]
[324794521,1714335086737,-500.0,0.00012054,2]
[324794522,1714335086747,-562.5,0.00012054,2]
[324794523,1714335086757,-1276.87,0.00012054,2]
[324794524,1714335086766,-547.13,0.00012054,2]
[324794525,1714335086775,-500.0,0.00012054,2]
[324794526,1714335086786,-500.0,0.00012054,2]
[324794527,1714335086796,-151.0,0.00012054,2]
[324794528,1714335086805,-518.76,0.00012054,2]
[324794529,1714335086814,-1269.32,0.00012054,2]
[324794530,1714335086823,-500.0,0.00012054,2]
[324794531,1714335086833,-500.0,0.00012054,2]
[324794532,1714335086842,-577.52,0.00012054,2]
[324794533,1714335086852,-480.73,0.00012054,2]
[324794534,1714335086862,-500.0,0.00012054,2]
[324794535,1714335086875,-500.0,0.00012054,2]
[324794536,1714335086884,-500.0,0.00012054,2]
[324794537,1714335086894,-562.5,0.00012054,2]
[324794538,1714335086903,-500.0,0.00012054,2]
[324794539,1714335086912,-500.0,0.00012054,2]
[324794540,1714335086921,-989.07,0.00012054,2]
[324794541,1714335086930,-771.63,0.00012054,2]
[324794542,1714335086939,-500.0,0.00012054,2]
[324794543,1714335086949,-580.16,0.00012054,2]
[324794544,1714335086959,-500.0,0.00012054,2]
[324794545,1714335086968,-500.0,0.00012054,2]
[324794546,1714335086978,-500.0,0.00012054,2]
[324794547,1714335086987,-500.0,0.00012054,2]
[324794548,1714335086996,-500.0,0.00012054,2]
[324794549,1714335087006,-592.44,0.00012054,2]
[324794550,1714335087016,-948.26,0.00012054,2]
[324794551,1714335087026,-500.0,0.00012054,2]
[324794552,1714335087035,-500.0,0.00012054,2]
[324794553,1714335087044,-500.0,0.00012054,2]
[324794554,1714335087053,-500.0,0.00012054,2]
[324794555,1714335087062,-500.0,0.00012054,2]
[324794556,1714335087071,-676.95,0.00012054,2]
[324794557,1714335087080,-500.0,0.00012054,2]
[324794558,1714335087089,-500.0,0.00012054,2]
[324794559,1714335087100,-376.02,0.00012054,2]
[324794560,1714335087109,-500.0,0.00012054,2]
[324794561,1714335087118,-500.0,0.00012054,2]
[324794562,1714335087128,-500.0,0.00012054,2]
[324794563,1714335087137,-500.0,0.00012054,2]
[324794564,1714335087146,-500.0,0.00012054,2]
[324794565,1714335087156,-1354.65,0.00012054,2]
[324794566,1714335087164,-931.21,0.00012054,2]
[324794567,1714335087173,-500.0,0.00012054,2]
[324794568,1714335087182,-1483.98,0.00012054,2]
[324794569,1714335087191,-500.0,0.00012054,2]
[324794570,1714335087200,-601.45182144,0.00012054,2]
[324794571,1714335087210,-500.0,0.00012054,2]
[324794572,1714335087219,-500.0,0.00012054,2]
[324794573,1714335087229,-500.0,0.00012054,2]
[324794574,1714335087238,-718.86,0.00012054,2]
[324794575,1714335087247,-500.0,0.00012054,2]
[324794576,1714335087256,-1102.68,0.00012054,2]
[324794577,1714335087265,-500.0,0.00012054,2]
[324794578,1714335087274,-500.0,0.00012054,2]
[324794579,1714335087283,-500.0,0.00012054,2]
[324794580,1714335087292,-500.0,0.00012054,2]
[324794581,1714335087301,-500.0,0.00012054,2]
[324794582,1714335087310,-1191.62,0.00012054,2]
[324794583,1714335087320,-500.0,0.00012054,2]
[324794584,1714335087329,-500.0,0.00012054,2]
[324794585,1714335087339,-941.05,0.00012054,2]
[324794586,1714335087348,-500.0,0.00012054,2]
[324794587,1714335087357,-500.0,0.00012054,2]
[324794588,1714335087367,-500.0,0.00012054,2]
[324794589,1714335087388,-500.0,0.00012054,2]
[324794590,1714335087408,-500.0,0.00012054,2]
[324794591,1714335087429,-500.0,0.00012054,2]
[324794592,1714335087448,-500.0,0.00012054,2]
[324794593,1714335087470,-500.0,0.00012054,2]
[324794594,1714335087487,-500.0,0.00012054,2]
[324794595,1714335087506,-1004.38,0.00012054,2]
[324794596,1714335087521,-500.0,0.00012054,2]
[324794597,1714335087539,-500.0,0.00012054,2]
[324794598,1714335087556,-500.0,0.00012054,2]
[324794599,1714335087575,-500.0,0.00012054,2]
[324794600,1714335087588,-962.75,0.00012054,2]
[324794601,1714335087605,-520.83,0.00012054,2]
[324794602,1714335087620,-737.17,0.00012054,2]
[324794603,1714335087637,-500.0,0.00012054,2]
[324794604,1714335087650,-500.0,0.00012054,2]
[324794605,1714335087664,-500.0,0.00012054,2]
[324794606,1714335087683,-500.0,0.00012054,2]
[324794607,1714335087697,-500.0,0.00012054,2]
[324794608,1714335087711,-500.0,0.00012054,2]
[324794609,1714335087727,-151.0,0.00012054,2]
[324794610,1714335087741,-704.1,0.00012054,2]
[324794611,1714335087756,-500.0,0.00012054,2]
[324794612,1714335087771,-697.52,0.00012054,2]
[324794613,1714335087786,-151.0,0.00012054,2]
[324794614,1714335087801,-500.0,0.00012054,2]
[324794615,1714335087815,-151.0,0.00012054,2]
[324794616,1714335087829,-500.0,0.00012054,2]
[324794617,1714335087844,-500.0,0.00012054,2]
[324794618,1714335087858,-892.91,0.00012054,2]
[324794619,1714335087873,-201.22979384,0.00012054,2]
[324794620,1714335087886,-500.0,0.00012054,2]
[324794621,1714335087901,-500.0,0.00012054,2]
[324794622,1714335087915,-543.87,0.00012054,2]
[324794623,1714335087930,-500.0,0.00012054,2]
[324794624,1714335087944,-1137.63123038,0.00012054,2]
[324794625,1714335087971,-794.22876962,0.00012054,2]
[324794626,1714335087986,-500.0,0.00012054,2]
[324794627,1714335088000,-2005.27,0.00012054,2]
[324794628,1714335088015,-500.0,0.00012054,2]
[324794629,1714335088028,-500.0,0.00012054,2]
[324794630,1714335088042,-500.0,0.00012054,2]
[324794631,1714335088056,-500.0,0.00012054,2]
[324794632,1714335088070,-500.0,0.00012054,2]
[324794633,1714335088085,-500.0,0.00012054,2]
[324794634,1714335088099,-500.0,0.00012054,2]
[324794635,1714335088113,-500.0,0.00012054,2]
[324794636,1714335088128,-562.5,0.00012054,2]
[324794637,1714335088141,-520.83,0.00012054,2]
[324794638,1714335088156,-151.0,0.00012054,2]
[324794639,1714335088170,-500.0,0.00012054,2]
[324794640,1714335088184,-444.12,0.00012054,2]
[324794641,1714335088198,-412.83226447,0.00012054,2]
[324794642,1714335088216,-87.16773553,0.00012054,2]
[324794643,1714335088233,-500.0,0.00012054,2]
[324794644,1714335088247,-500.0,0.00012054,2]
[324794645,1714335088261,-1002.82,0.00012054,2]
[324794646,1714335088275,-500.0,0.00012054,2]
[324794647,1714335088289,-151.0,0.00012054,2]
[324794648,1714335088303,-500.0,0.00012054,2]
[324794649,1714335088317,-290.756738,0.00012054,2]
[324794650,1714335088332,-500.0,0.00012054,2]
[324794651,1714335088347,-439.48531942,0.00012054,2]
[324794652,1714335088362,-500.0,0.00012054,2]
[324794653,1714335088374,-290.756738,0.00012054,2]
[324794654,1714335088386,-607.23,0.00012054,2]
[324794655,1714335088396,-500.0,0.00012054,2]
[324794656,1714335088406,-500.0,0.00012054,2]
[324794657,1714335088415,-665.39,0.00012054,2]
[324794658,1714335088426,-500.0,0.00012054,2]
[324794659,1714335088436,-500.0,0.00012054,2]
[324794660,1714335088446,-34.99502298,0.00012054,2]
[324794661,1714335088460,-465.00497702,0.00012054,2]
[324794662,1714335088472,-500.0,0.00012054,2]
[324794663,1714335088481,-500.0,0.00012054,2]
[324794664,1714335088490,-500.0,0.00012054,2]
[324794665,1714335088500,-500.0,0.00012054,2]
[324794666,1714335088509,-708.13,0.00012054,2]
[324794667,1714335088519,-1615.1,0.00012054,2]
[324794668,1714335088529,-500.0,0.00012054,2]
[324794669,1714335088539,-217.372388,0.00012054,2]
[324794670,1714335088549,-504.6,0.00012054,2]
[324794671,1714335088558,-500.0,0.00012054,2]
[324794672,1714335088568,-500.0,0.00012054,2]
[324794673,1714335088578,-3629.97,0.00012054,2]
[324794674,1714335088587,-1130.11,0.00012054,2]
[324794675,1714335088596,-582.99,0.00012054,2]
[324794676,1714335088605,-151.0,0.00012054,2]
[324794677,1714335088614,-217.372388,0.00012054,2]
[324794678,1714335088623,-534.03,0.00012054,2]
[324794679,1714335088633,-243.56,0.00012054,2]
[324794680,1714335088642,-151.0,0.00012054,2]
[324794681,1714335088652,-5395.03,0.00012054,2]
[324794682,1714335088661,-500.0,0.00012054,2]
[324794683,1714335088671,-500.0,0.00012054,2]
[324794684,1714335088680,-500.0,0.00012054,2]
[324794685,1714335088689,-387.56,0.00012054,2]
[324794686,1714335088698,-500.0,0.00012054,2]
[324794687,1714335088707,-500.0,0.00012054,2]
[324794688,1714335088717,-564.8,0.00012054,2]
[324794689,1714335088727,-500.0,0.00012054,2]
[324794690,1714335088736,-966.12,0.00012054,2]
[324794691,1714335088745,-665.52,0.00012054,2]
[324794692,1714335088754,-500.0,0.00012054,2]
[324794693,1714335088763,-500.0,0.00012054,2]
[324794694,1714335088772,-439.856673,0.00012054,2]
[324794695,1714335088781,-530.4,0.00012054,2]
[324794696,1714335088791,-500.0,0.00012054,2]
[324794697,1714335089185,-151.0,0.00012054,2]
[324794698,1714335089205,-500.0,0.00012054,2]
[324794699,1714335089225,-439.856673,0.00012054,2]
[324794700,1714335089243,-500.0,0.00012054,2]
[324794701,1714335089262,-500.0,0.00012054,2]
[324794702,1714335089279,-608.01,0.00012054,2]
[324794703,1714335089288,-500.0,0.00012054,2]
[324794704,1714335089298,-500.0,0.00012054,2]
[324794705,1714335089310,-500.0,0.00012054,2]
[324794706,1714335089320,-500.0,0.00012054,2]
[324794707,1714335089329,-706.48,0.00012054,2]
[324794708,1714335089339,-602.98,0.00012054,2]
[324794709,1714335089348,-724.080274,0.00012054,2]
[324794710,1714335089359,-500.0,0.00012054,2]
[324794711,1714335089369,-500.0,0.00012054,2]
[324794712,1714335089378,-500.0,0.00012054,2]
[324794713,1714335089393,-500.0,0.00012054,2]
[324794714,1714335089403,-1824.84,0.00012054,2]
[324794715,1714335089413,-724.080274,0.00012054,2]
[324794716,1714335089426,-1415.41,0.00012054,2]
[324794717,1714335089436,-911.62,0.00012054,2]
[324794718,1714335089447,-500.0,0.00012054,2]
[324794719,1714335089457,-500.0,0.00012054,2]
[324794720,1714335089467,-500.0,0.00012054,2]
[324794721,1714335089478,-500.0,0.00012054,2]
[324794722,1714335089489,-1589.3,0.00012054,2]
[324794723,1714335089499,-151.0,0.00012054,2]
[324794724,1714335089509,-500.0,0.00012054,2]
[324794725,1714335089518,-520.83,0.00012054,2]
[324794726,1714335089528,-500.0,0.00012054,2]
[324794727,1714335089537,-684.215025,0.00012054,2]
[324794728,1714335089546,-500.0,0.00012054,2]
[324794729,1714335089556,-500.0,0.00012054,2]
[324794730,1714335089565,-500.0,0.00012054,2]
[324794731,1714335089575,-500.0,0.00012054,2]
[324794732,1714335089584,-684.215025,0.00012054,2]
[324794733,1714335089594,-500.0,0.00012054,2]
[324794734,1714335089606,-500.0,0.00012054,2]
[324794735,1714335089616,-1830.16,0.00012054,2]
[324794736,1714335089626,-281.639809,0.00012054,2]
[324794737,1714335089636,-2000.0,0.00012054,2]
[324794738,1714335089648,-504.66944444,0.00012054,2]
[324794739,1714335089658,-500.0,0.00012054,2]
[324794740,1714335089668,-281.639809,0.00012054,2]
[324794741,1714335089679,-642.0541159,0.00012054,2]
[324794742,1714335089689,-447.05,0.00012054,2]
[324794743,1714335089701,-1311.58,0.00012054,2]
[324794744,1714335089710,-524.55,0.00012054,2]
[324794745,1714335089719,-632.72,0.00012054,2]
[324794746,1714335089729,-190.425428,0.00012054,2]
[324794747,1714335089738,-500.0,0.00012054,2]
[324794748,1714335089748,-190.425428,0.00012054,2]
[324794749,1714335089758,-662.93,0.00012054,2]
[324794750,1714335089767,-500.0,0.00012054,2]
[324794751,1714335089777,-914.28,0.00012054,2]
[324794752,1714335089787,-500.0,0.00012054,2]
[324794753,1714335089797,-151.0,0.00012054,2]
[324794754,1714335089808,-500.0,0.00012054,2]
[324794755,1714335089818,-500.0,0.00012054,2]
[324794756,1714335089827,-3422.18,0.00012054,2]
[324794757,1714335089838,-500.0,0.00012054,2]
[324794758,1714335089847,-500.0,0.00012054,2]
[324794759,1714335089856,-500.0,0.00012054,2]
[324794760,1714335089867,-500.0,0.00012054,2]
[324794761,1714335089877,-555.24,0.00012054,2]
[324794762,1714335089886,-767.88,0.00012054,2]
[324794763,1714335089895,-500.0,0.00012054,2]
[324794764,1714335089904,-500.0,0.00012054,2]
[324794765,1714335089914,-735.24,0.00012054,2]
[324794766,1714335089923,-706.69,0.00012054,2]
[324794767,1714335089932,-500.0,0.00012054,2]
[324794768,1714335089941,-151.0,0.00012054,2]
[324794769,1714335089951,-500.0,0.00012054,2]
[324794770,1714335089960,-259.650878,0.00012054,2]
[324794771,1714335089969,-1342.45,0.00012054,2]
[324794772,1714335089979,-533.84,0.00012054,2]
[324794773,1714335089989,-788.02,0.00012054,2]
[324794774,1714335089999,-2092.94,0.00012054,2]
[324794775,1714335090009,-259.650878,0.00012054,2]
[324794776,1714335090019,-151.0,0.00012054,2]
[324794777,1714335090029,-500.0,0.00012054,2]
[324794778,1714335090038,-2167.16,0.00012054,2]
[324794779,1714335090048,-1698.03,0.00012054,2]
[324794780,1714335090058,-554.604274,0.00012054,2]
[324794781,1714335090067,-151.0,0.00012054,2]
[324794782,1714335090077,-500.0,0.00012054,2]
[324794783,1714335090086,-625.653564,0.00012054,2]
[324794784,1714335090095,-500.0,0.00012054,2]
[324794785,1714335090104,-1776.941553,0.00012054,2]
[324794786,1714335090113,-554.604274,0.00012054,2]
[324794787,1714335090122,-500.0,0.00012054,2]
[324794788,1714335090131,-500.0,0.00012054,2]
[324794789,1714335090141,-5663.56,0.00012054,2]
[324794790,1714335090150,-500.0,0.00012054,2]
[324794791,1714335090160,-1776.941553,0.00012054,2]
[324794792,1714335090169,-500.0,0.00012054,2]
[324794793,1714335090179,-709.07,0.00012054,2]
[324794794,1714335090187,-500.0,0.00012054,2]
[324794795,1714335090197,-500.0,0.00012054,2]
[324794796,1714335090206,-5318.53,0.00012054,2]
[324794797,1714335090216,-500.0,0.00012054,2]
[324794798,1714335090226,-576.42,0.00012054,2]
[324794799,1714335090235,-673.78,0.00012054,2]
[324794800,1714335090244,-730.03,0.00012054,2]
[324794801,1714335090254,-500.0,0.00012054,2]
[324794802,1714335090263,-500.0,0.00012054,2]
[324794803,1714335090273,-1119.99,0.00012054,2]
[324794804,1714335090283,-500.0,0.00012054,2]
[324794805,1714335090292,-3883.79,0.00012054,2]
[324794806,1714335090302,-500.0,0.00012054,2]
[324794807,1714335090311,-449.59,0.00012054,2]
[324794808,1714335090320,-4497.99,0.00012054,2]
[324794809,1714335090329,-151.0,0.00012054,2]
[324794810,1714335090339,-500.0,0.00012054,2]
[324794811,1714335090348,-1502.91,0.00012054,2]
[324794812,1714335090357,-500.0,0.00012054,2]
[324794813,1714335090367,-500.0,0.00012054,2]
[324794814,1714335090376,-505.03,0.00012054,2]
[324794815,1714335090387,-1373.5,0.00012054,2]
[324794816,1714335090397,-1354.41,0.00012054,2]
[324794817,1714335090407,-10290.32,0.00012054,2]
[324794818,1714335090416,-2176.76,0.00012054,2]
[324794819,1714335090427,-1071.21,0.00012054,2]
[324794820,1714335090436,-500.0,0.00012054,2]
[324794821,1714335090445,-500.0,0.00012054,2]
[324794822,1714335090455,-639.11,0.00012054,2]
[324794823,1714335090468,-500.0,0.00012054,2]
[324794824,1714335090480,-500.0,0.00012054,2]
[324794825,1714335090490,-1877.516642,0.00012054,2]
[324794826,1714335090500,-500.0,0.00012054,2]
[324794827,1714335090511,-500.0,0.00012054,2]
[324794828,1714335090522,-1357.3,0.00012054,2]
[324794829,1714335090532,-614.63,0.00012054,2]
[324794830,1714335090542,-8156.81,0.00012054,2]
[324794831,1714335090552,-1877.516642,0.00012054,2]
[324794832,1714335090563,-474.03273726,0.00012054,2]
[324794833,1714335090573,-500.0,0.00012054,2]
[324794834,1714335090583,-583.22,0.00012054,2]
[324794835,1714335090592,-580.74,0.00012054,2]
[324794836,1714335090604,-1739.27,0.00012054,2]
[324794837,1714335090616,-500.0,0.00012054,2]
[324794838,1714335090626,-500.0,0.00012054,2]
[324794839,1714335090636,-1338.92,0.00012054,2]
[324794840,1714335090645,-500.0,0.00012054,2]
[324794841,1714335090655,-1602.59,0.00012054,2]
[324794842,1714335090665,-151.0,0.00012054,2]
[324794843,1714335090675,-500.0,0.00012054,2]
[324794844,1714335090685,-500.0,0.00012054,2]
[324794845,1714335090696,-3585.18,0.00012054,2]
[324794846,1714335090706,-3404.45,0.00012054,2]
[324794847,1714335090716,-500.0,0.00012054,2]
[324794848,1714335090726,-3861.32,0.00012054,2]
[324794849,1714335090735,-584.32,0.00012054,2]
[324794850,1714335090745,-1528.83,0.00012054,2]
[324794851,1714335090755,-2219.685263,0.00012054,2]
[324794852,1714335090764,-1912.47,0.00012054,2]
[324794853,1714335090774,-500.0,0.00012054,2]
[324794854,1714335090783,-500.0,0.00012054,2]
[324794855,1714335090794,-10000.0,0.00012054,2]
[324794856,1714335090803,-500.0,0.00012054,2]
[324794857,1714335090812,-500.0,0.00012054,2]
[324794858,1714335090822,-2219.685263,0.00012054,2]
[324794859,1714335090831,-500.0,0.00012054,2]
[324794860,1714335090840,-530.84,0.00012054,2]
[324794861,1714335090849,-1414.12,0.00012054,2]
[324794862,1714335090859,-500.0,0.00012054,2]
[324794863,1714335090868,-1402.340596,0.00012054,2]
[324794864,1714335090877,-500.0,0.00012054,2]
[324794865,1714335090887,-500.0,0.00012054,2]
[324794866,1714335090896,-4357.97,0.00012054,2]
[324794867,1714335090906,-3715.69,0.00012054,2]
[324794868,1714335090916,-1402.340596,0.00012054,2]
[324794869,1714335090925,-914.96,0.00012054,2]
[324794870,1714335090935,-556.03,0.00012054,2]
[324794871,1714335090944,-500.0,0.00012054,2]
[324794872,1714335090953,-2110.76,0.00012054,2]
[324794873,1714335090963,-500.0,0.00012054,2]
[324794874,1714335090972,-500.0,0.00012054,2]
[324794875,1714335090981,-500.0,0.00012054,2]
[324794876,1714335090991,-564.22,0.00012054,2]
[324794877,1714335091000,-500.0,0.00012054,2]
[324794878,1714335091009,-4413.77,0.00012054,2]
[324794879,1714335091019,-162.373722,0.00012054,2]
[324794880,1714335091028,-500.0,0.00012054,2]
[324794881,1714335091038,-325.44,0.00012054,2]
[324794882,1714335091048,-660.54,0.00012054,2]
[324794883,1714335091058,-1063.45,0.00012054,2]
[324794884,1714335091067,-151.0,0.00012054,2]
[324794885,1714335091077,-162.373722,0.00012054,2]
[324794886,1714335091087,-500.0,0.00012054,2]
[324794887,1714335091097,-10713.43,0.00012054,2]
[324794888,1714335091106,-500.0,0.00012054,2]
[324794889,1714335091116,-500.0,0.00012054,2]
[324794890,1714335091125,-151.0,0.00012054,2]
[324794891,1714335091135,-500.0,0.00012054,2]
[324794892,1714335091144,-500.0,0.00012054,2]
[324794893,1714335091154,-777.04,0.00012054,2]
[324794894,1714335091163,-584.78,0.00012054,2]
[324794895,1714335091172,-500.0,0.00012054,2]
[324794896,1714335091181,-2092.03,0.00012054,2]
[324794897,1714335091191,-2059.96,0.00012054,2]
[324794898,1714335091200,-500.0,0.00012054,2]
[324794899,1714335091209,-674.68,0.00012054,2]
[324794900,1714335091218,-6179.61,0.00012054,2]
[324794901,1714335091228,-1071.510703,0.00012054,2]
[324794902,1714335091238,-7807.56,0.00012054,2]
[324794903,1714335091248,-1585.49,0.00012054,2]
[324794904,1714335091257,-522.18,0.00012054,2]
[324794905,1714335091267,-500.0,0.00012054,2]
[324794906,1714335091276,-489.06885807,0.00012054,2]
[324794907,1714335091285,-644.87,0.00012054,2]
[324794908,1714335091294,-1071.510703,0.00012054,2]
[324794909,1714335091303,-500.0,0.00012054,2]
[324794910,1714335091312,-1634.43,0.00012054,2]
[324794911,1714335091322,-500.0,0.00012054,2]
[324794912,1714335091331,-270.937038,0.00012054,2]
[324794913,1714335091341,-500.0,0.00012054,2]
[324794914,1714335091350,-889.84,0.00012054,2]
[324794915,1714335091359,-1305.51,0.00012054,2]
[324794916,1714335091368,-500.0,0.00012054,2]
[324794917,1714335091378,-500.0,0.00012054,2]
[324794918,1714335091392,-7923.02,0.00012054,2]
[324794919,1714335091401,-560.52,0.00012054,2]
[324794920,1714335091411,-270.937038,0.00012054,2]
[324794921,1714335091420,-7586.52,0.00012054,2]
[324794922,1714335091431,-590.45,0.00012054,2]
[324794923,1714335091440,-500.0,0.00012054,2]
[324794924,1714335091450,-500.0,0.00012054,2]
[324794925,1714335091462,-500.0,0.00012054,2]
[324794926,1714335091472,-2933.808158,0.00012054,2]
[324794927,1714335091484,-621.79,0.00012054,2]
[324794928,1714335091495,-585.65,0.00012054,2]
[324794929,1714335091505,-500.0,0.00012054,2]
[324794930,1714335091515,-2052.98,0.00012054,2]
[324794931,1714335091526,-679.49,0.00012054,2]
[324794932,1714335091536,-151.468746,0.00012054,2]
[324794933,1714335091545,-5227.15,0.00012054,2]
[324794934,1714335091556,-585.79,0.00012054,2]
[324794935,1714335091567,-550.705949,0.00012054,2]
[324794936,1714335091577,-2933.808158,0.00012054,2]
[324794937,1714335091587,-500.0,0.00012054,2]
[324794938,1714335091597,-1925.76,0.00012054,2]
[324794939,1714335091607,-500.0,0.00012054,2]
[324794940,1714335091619,-500.0,0.00012054,2]
[324794941,1714335091627,-3698.54,0.00012054,2]
[324794942,1714335091638,-1470.84,0.00012054,2]
[324794943,1714335091649,-911.54,0.00012054,2]
[324794944,1714335091659,-537.76,0.00012054,2]